bitfinex-derivatives/quotes_SOLF0:USTF0_20250514
["timestamp","ask_amount","ask_price","bid_price","bid_amount"]
[1747261762768,55.96,176.76,176.71,5.658]
[1747261763062,55.96,176.76,176.7,4.09969301]
[1747261763272,5.6573,176.74,176.7,9.75779301]
[1747261763468,5.6573,176.74,176.7,4.09969301]
[1747261764077,5.6573,176.74,176.71,5.6579]
[1747261764572,55.96,176.76,176.69,56.0]
[1747261764873,4.09969301,176.73,176.69,56.0]
[1747261766575,5.6581,176.71,176.69,56.0]
[1747261766770,4.09969301,176.73,176.69,56.0]
[1747261766970,4.09969301,176.75,176.7,4.09969301]
[1747261767466,5.6573,176.74,176.71,5.6579]
[1747261767875,5.6573,176.74,176.7,4.09969301]
[1747261768278,5.6573,176.74,176.71,5.658]
[1747261770177,57.7257,176.78,176.72,5.6576]
[1747261770378,57.7257,176.78,176.73,55.96]
[1747261771474,5.6571,176.75,176.73,55.96]
[1747261772378,5.6571,176.74,176.73,55.96]
[1747261774083,5.6585,176.7,176.69,55.96]
[1747261774282,55.96,176.74,176.69,55.96]
[1747261774587,5.658,176.72,176.69,61.6187]
[1747261775988,5.6582,176.71,176.69,61.6187]
[1747261776385,5.6582,176.71,176.69,55.96]
[1747261777087,5.6584,176.7,176.69,55.96]
[1747261797605,9.7589922,176.7,176.69,55.96]
[1747261801808,5.6591,176.68,176.67,55.94]
[1747261803110,5.6589,176.69,176.67,55.94]
[1747261803313,4.1005922,176.7,176.67,55.94]
[1747261803812,9.7592922,176.7,176.67,55.94]
[1747261804013,4.1005922,176.7,176.67,55.94]
[1747261804514,5.659,176.69,176.67,55.94]
[1747261804715,60.0405922,176.72,176.67,55.94]
[1747261805712,55.94,176.72,176.67,55.94]
[1747261806214,5.6587,176.7,176.67,61.5992]
[1747261806806,5.6582,176.71,176.68,5.659]
[1747261807002,55.94,176.75,176.67,60.0405922]
[1747261807207,7.7872,176.77,176.71,5.6581]
[1747261807208,5.6576,176.73,176.71,5.6581]
[1747261807404,5.6576,176.73,176.71,61.5981]
[1747261807813,5.6576,176.73,176.71,55.94]
[1747261808115,5.6578,176.72,176.71,55.94]
[1747261809010,9.7583922,176.72,176.71,55.94]
[1747261809810,5.6578,176.72,176.71,55.94]
[1747261811810,5.6573,176.74,176.71,55.94]
[1747261812017,64.0405922,176.77,176.71,60.0405922]
[1747261813115,4.1005922,176.77,176.72,5.6576]
[1747261814521,60.0205922,176.77,176.72,5.6576]
[1747261814817,9.6061,176.82,176.71,60.0405922]
[1747261815017,4.1005922,176.78,176.71,60.0405922]
[1747261815315,5.6567,176.76,176.73,5.6572]
[1747261815919,5.6569,176.75,176.73,5.6572]
[1747261816429,4.1005922,176.78,176.71,60.0405922]
[1747261816728,4.1005922,176.77,176.71,60.0405922]
[1747261816931,4.1005922,176.77,176.71,65.6984922]
[1747261817126,5.6573,176.74,176.71,65.6984922]
[1747261817931,5.6573,176.74,176.72,5.6577]
[1747261819531,5.6575,176.73,176.71,65.6985922]
[1747261821133,5.6578,176.72,176.71,55.94]
[1747261821328,4.1005922,176.75,176.71,55.94]
[1747261821529,4.1005922,176.73,176.71,55.94]
[1747261821736,5.6578,176.72,176.71,55.94]
[1747261821932,4.1005922,176.73,176.68,55.9]
[1747261822128,4.1005922,176.71,176.68,55.9]
[1747261822632,5.6588,176.69,176.68,55.9]
[1747261823337,9.7593922,176.69,176.68,55.9]
[1747261823523,5.6595,176.67,176.65,55.9]
[1747261824034,4.1005922,176.69,176.65,55.9]
[1747261825233,55.9,176.7,176.65,55.9]
[1747261825629,5.6592,176.68,176.65,61.56]
[1747261827132,5.6594,176.67,176.65,55.9]
[1747261827833,55.9,176.7,176.65,55.9]
[1747261828031,5.6597,176.66,176.65,55.9]
[1747261829033,62.30822017,176.7,176.65,55.9]
[1747261829234,55.92,176.69,176.65,55.9]
[1747261830635,5.6596,176.67,176.65,55.9]
[1747261840045,5.6597,176.66,176.65,55.9]
[1747261840843,55.92,176.69,176.62,55.92]
[1747261841046,6.40822017,176.67,176.62,55.92]
[1747261842545,5.6609,176.63,176.62,55.92]
[1747261847349,5.6605,176.64,176.62,55.92]
[1747261847954,5.6601,176.65,176.62,61.5808]
[1747261854551,5.6604,176.64,176.62,61.5808]
[1747261854755,64.11582017,176.69,176.62,55.92]
[1747261855152,5.6607,176.63,176.62,55.92]
[1747261857249,5.6617,176.6,176.59,55.9]
[1747261861556,5.6627,176.57,176.56,55.92]
[1747261865461,5.6638,176.54,176.53,55.92]
[1747261869363,5.6642,176.52,176.51,489.14]
[1747261869662,55.92,176.57,176.5,55.92]
[1747261870562,5.6645,176.51,176.5,55.92]
[1747261873569,5.6655,176.48,176.47,55.94]
[1747261875768,55.92,176.48,176.42,489.3]
[1747261875967,55.92,176.48,176.43,55.94]
[1747261877067,55.94,176.5,176.43,55.94]
[1747261877865,5.6657,176.48,176.45,5.6664]
[1747261878066,4.0,176.54,176.43,55.94]
[1747261878067,55.94,176.51,176.43,55.94]
[1747261878668,5.6651,176.5,176.46,5.6659]
[1747261878865,55.94,176.51,176.47,55.94]
[1747261879364,5.6652,176.49,176.47,55.94]
[1747261881168,5.6655,176.48,176.47,55.94]
[1747261885572,5.6662,176.46,176.44,55.94]
[1747261886275,56.12,176.47,176.41,55.94]
[1747261886773,5.6674,176.43,176.41,55.94]
[1747261887071,56.12,176.47,176.41,55.94]
[1747261887573,5.6671,176.43,176.41,55.94]
[1747261887974,56.12,176.47,176.41,55.94]
[1747261888174,5.6674,176.42,176.41,55.94]
[1747261890270,5.6674,176.42,176.38,5.6686]
[1747261890474,57.9859,176.47,176.39,55.94]
[1747261890975,5.6683,176.4,176.39,55.94]
[1747261891272,56.16,176.46,176.39,55.94]
[1747261891475,5.6679,176.41,176.39,55.94]
[1747261892077,5.6675,176.42,176.39,55.94]
[1747261892373,56.2,176.46,176.39,55.94]
[1747261892677,5.6673,176.43,176.39,55.94]
[1747261893578,5.6673,176.43,176.4,5.6678]
[1747261901380,5.6674,176.42,176.4,5.6678]
[1747261904081,5.6672,176.43,176.4,5.6678]
[1747261904283,1.8659,176.47,176.41,5.6677]
[1747261904779,5.6669,176.44,176.41,5.6677]
[1747261905687,5.6671,176.43,176.41,5.6677]
[1747261907585,5.6671,176.43,176.4,5.6679]
[1747261909986,5.6671,176.43,176.41,5.6677]
[1747261910987,5.6668,176.44,176.41,5.6677]
[1747261912089,5.6671,176.43,176.41,5.6677]
[1747261913789,5.6668,176.44,176.41,5.6677]
[1747261915087,5.666,176.47,176.42,4.11210789]
[1747261915386,60.15210789,176.5,176.43,56.06]
[1747261915587,4.11210789,176.48,176.43,56.06]
[1747261916791,5.6665,176.45,176.43,56.06]
[1747261918991,5.6665,176.45,176.43,61.727]
[1747261919191,5.6662,176.46,176.43,61.727]
[1747261919387,4.11210789,176.48,176.43,56.06]
[1747261919593,4.11210789,176.48,176.45,5.6664]
[1747261920289,9.77780789,176.48,176.45,5.6664]
[1747261921194,5.6658,176.47,176.45,5.6664]
[1747261921396,5.6658,176.47,176.44,5.6666]
[1747261923594,5.6658,176.47,176.45,5.6664]
[1747261923793,60.15210789,176.5,176.43,60.17210789]
[1747261924098,60.15210789,176.5,176.43,116.13210789]
[1747261924298,5.6653,176.49,176.46,5.6659]
[1747261924596,60.15210789,176.5,176.47,56.04]
[1747261925300,5.6654,176.49,176.47,56.04]
[1747261925801,5.6655,176.48,176.47,56.04]
[1747261928496,5.6653,176.49,176.47,56.04]
[1747261929595,5.6653,176.49,176.47,61.7057]
[1747261929901,5.6653,176.49,176.47,56.04]
[1747261931400,5.6655,176.48,176.47,56.04]
[1747261934902,5.6652,176.49,176.47,56.04]
[1747261936705,5.6655,176.48,176.47,56.04]
[1747261941716,5.6664,176.45,176.44,56.04]
[1747261953016,9.77823966,176.45,176.44,56.04]
[1747261953512,5.6672,176.43,176.41,55.96]
[1747261953719,4.11183966,176.45,176.41,55.96]
[1747261954216,5.6674,176.42,176.41,55.96]
[1747261966517,6.02093966,176.48,176.41,60.07183966]
[1747261966921,5.6667,176.45,176.42,5.6672]
[1747261968421,5.6669,176.44,176.41,61.6276]
[1747261971017,5.6669,176.44,176.42,5.6674]
[1747261972520,5.6669,176.44,176.41,61.6276]
[1747261978230,5.6669,176.44,176.42,5.6674]
[1747261978927,5.6666,176.45,176.42,5.6674]
[1747261981037,5.6662,176.46,176.41,60.07183966]
[1747261982038,5.6662,176.46,176.43,5.6668]
[1747261982334,5.6662,176.46,176.41,60.07183966]
[1747261982536,5.6659,176.47,176.41,60.07183966]
[1747261982729,8.11183966,176.5,176.43,4.11183966]
[1747261982935,5.6653,176.49,176.43,60.07183966]
[1747261983326,5.6653,176.49,176.45,4.11183966]
[1747261983526,5.6653,176.49,176.46,55.94]
[1747261983736,5.6653,176.49,176.46,61.6059]
[1747261983942,5.6649,176.5,176.46,55.94]
[1747261984438,5.6649,176.5,176.47,5.6656]
[1747261984736,5.6649,176.5,176.46,55.94]
[1747261984937,5.6653,176.49,176.46,55.94]
[1747261986042,5.6656,176.48,176.46,55.94]
[1747261987040,5.6658,176.47,176.46,55.94]
[1747262001854,5.6677,176.42,176.4,60.05183966]
[1747262002055,5.6677,176.42,176.41,55.94]
[1747262007056,5.6672,176.43,176.41,55.94]
[1747262008162,7.86343966,176.49,176.42,4.11183966]
[1747262008565,5.6656,176.48,176.45,5.6664]
[1747262008765,5.6656,176.48,176.45,61.5864]
[1747262010666,5.6652,176.49,176.45,61.5864]
[1747262010868,5.6652,176.49,176.46,5.666]
[1747262012670,5.6649,176.5,176.47,5.6658]
[1747262012970,4.11183966,176.51,176.45,55.92]
[1747262013170,9.6645,176.52,176.48,5.6653]
[1747262013371,5.92263966,176.53,176.49,55.92]
[1747262013873,5.6642,176.52,176.49,55.92]
[1747262014066,5.92263966,176.53,176.49,55.92]
[1747262014266,4.11183966,176.53,176.49,55.92]
[1747262014672,5.6642,176.52,176.49,55.92]
[1747262014871,5.6642,176.52,176.49,61.5851]
[1747262017978,5.6645,176.51,176.49,55.92]
[1747262018377,4.11183966,176.53,176.49,55.92]
[1747262019580,5.6644,176.52,176.49,61.5851]
[1747262021985,5.6646,176.51,176.49,55.92]
[1747262023783,5.6648,176.5,176.49,55.92]
[1747262033599,4.11183966,176.53,176.49,55.92]
[1747262033799,7.86663966,176.55,176.49,55.92]
[1747262034495,7.86663966,176.55,176.5,5.6648]
[1747262034695,7.86663966,176.55,176.49,55.92]
[1747262035200,5.6641,176.53,176.5,5.6648]
[1747262036501,7.86663966,176.55,176.49,61.5851]
[1747262037697,7.86663966,176.55,176.49,5.6651]
[1747262037698,5.6645,176.51,176.49,5.6651]
[1747262037897,16.99,176.49,176.24,55.9]
[1747262038103,16.99,176.45,176.26,4.11055605]
[1747262038307,4.11055605,176.37,176.28,4.11055605]
[1747262038505,56.46,176.36,176.29,55.9]
[1747262038701,62.1295,176.36,176.29,55.9]
[1747262038895,56.44,176.35,176.29,55.9]
[1747262039101,56.44,176.36,176.3,4.11655015]
[1747262039506,5.6697,176.35,176.3,4.11655015]
[1747262040208,5.6701,176.34,176.3,4.11655015]
[1747262040805,56.44,176.36,176.3,4.11655015]
[1747262041311,56.44,176.36,176.29,55.9]
[1747262041609,5.6703,176.33,176.29,55.9]
[1747262042310,56.44,176.36,176.29,55.9]
[1747262043011,5.6712,176.3,176.29,55.9]
[1747262044010,5.6712,176.3,176.02,28.401]
[1747262044011,61.6,176.3,176.1,55.92]
[1747262044216,6.44294762,176.27,176.12,1.7697]
[1747262044406,57.8,176.26,176.13,61.5965]
[1747262044611,57.8,176.26,176.13,55.92]
[1747262045012,5.6748,176.19,176.13,61.5967]
[1747262045312,57.92,176.22,176.12,1.7697]
[1747262045515,6.44294762,176.21,176.11,3.7308]
[1747262045714,58.08,176.2,176.13,55.92]
[1747262047216,58.08,176.21,176.13,55.92]
[1747262047814,63.7542,176.21,176.13,55.92]
[1747262048319,5.6745,176.2,176.13,55.92]
[1747262048516,58.08,176.21,176.13,55.92]
[1747262048711,5.5205,176.29,176.14,64.50294762]
[1747262048915,5.6728,176.26,176.17,5.6751]
[1747262049115,5.6728,176.26,176.18,55.94]
[1747262049315,58.06,176.28,176.18,55.94]
[1747262049716,5.6729,176.25,176.18,61.6151]
[1747262049916,11.96344762,176.29,176.18,61.6151]
[1747262049917,58.2,176.26,176.18,55.94]
[1747262050116,6.44294762,176.29,176.18,119.5856]
[1747262050316,58.22,176.28,176.18,119.5856]
[1747262050618,58.22,176.28,176.23,5.6734]
[1747262050818,12.07014762,176.34,176.24,55.96]
[1747262051012,5.6272,176.34,176.27,5.6719]
[1747262051207,58.22,176.33,176.28,55.96]
[1747262052115,4.0,176.36,176.28,55.96]
[1747262052321,58.26,176.35,176.28,55.96]
[1747262052615,5.67,176.34,176.28,55.96]
[1747262053421,62.24,176.36,176.28,55.96]
[1747262054018,6.43556078,176.29,176.1,59.06]
[1747262054218,6.43556078,176.23,176.1,59.06]
[1747262054420,5.6741,176.22,176.14,5.6763]
[1747262054620,5.6741,176.22,176.15,59.06]
[1747262054821,66.65556078,176.23,176.15,59.06]
[1747262056024,5.6751,176.18,176.15,59.06]
[1747262056424,66.66516282,176.23,176.15,59.06]
[1747262056726,5.6753,176.18,176.15,59.06]
[1747262057022,60.1,176.22,176.15,59.06]
[1747262057222,5.6747,176.2,176.15,59.06]
[1747262060726,5.6742,176.21,176.15,59.06]
[1747262061127,5.6742,176.21,176.15,119.0]
[1747262061526,5.6739,176.22,176.15,119.0]
[1747262061728,59.96,176.24,176.15,119.0]
[1747262062825,59.96,176.24,176.16,5.6755]
[1747262063026,59.86,176.25,176.16,5.6755]
[1747262063226,5.6739,176.22,176.17,5.6754]
[1747262063428,59.86,176.25,176.15,119.0]
[1747262064428,5.6741,176.22,176.16,5.6755]
[1747262067029,5.6741,176.22,176.17,5.6754]
[1747262067626,5.6742,176.21,176.17,5.6754]
[1747262070137,59.58,176.21,176.15,59.06]
[1747262070330,59.58,176.22,176.15,59.06]
[1747262071033,5.6747,176.2,176.15,64.7358]
[1747262071333,59.58,176.22,176.15,64.7358]
[1747262071838,59.58,176.22,176.15,59.06]
[1747262073128,5.6757,176.17,176.15,59.06]
[1747262074635,5.6758,176.16,176.15,59.06]
[1747262075037,59.58,176.22,176.15,59.06]
[1747262075232,5.6749,176.19,176.15,59.06]
[1747262075934,5.6751,176.18,176.15,59.06]
[1747262077037,5.6749,176.19,176.15,64.736]
[1747262081837,59.58,176.22,176.15,59.06]
[1747262082036,6.44628441,176.21,176.15,59.06]
[1747262082233,6.44628441,176.21,176.12,490.1]
[1747262082433,3.7461,176.2,176.13,59.08]
[1747262082636,5.676,176.16,176.13,59.08]
[1747262083533,5.676,176.16,176.13,64.7566]
[1747262083734,3.7461,176.2,176.13,59.08]
[1747262084335,5.6749,176.19,176.15,5.6761]
[1747262084640,61.419,176.21,176.13,59.08]
[1747262085743,5.676,176.16,176.13,64.7567]
[1747262088843,5.676,176.16,176.13,59.08]
[1747262091244,5.6755,176.17,176.13,64.7567]
[1747262092642,5.6758,176.16,176.13,64.7567]
[1747262093444,5.6764,176.14,176.13,59.08]
[1747262097743,5.6764,176.14,176.1,5.6776]
[1747262097948,6.44974699,176.16,176.1,5.6776]
[1747262098150,65.649222,176.17,176.1,5.6776]
[1747262098544,5.6769,176.13,176.1,5.6776]
[1747262098848,5.6769,176.13,176.09,65.2379]
[1747262099051,65.649222,176.17,176.09,65.2379]
[1747262099449,59.2,176.17,176.09,65.2379]
[1747262100453,5.6771,176.12,176.09,65.2379]
[1747262100747,59.2,176.17,176.09,59.56]
[1747262101253,6.449895,176.16,176.09,59.56]
[1747262101752,5.6773,176.12,176.09,59.56]
[1747262103852,62.9303,176.17,176.09,59.56]
[1747262104657,5.6776,176.11,176.09,59.56]
[1747262105257,5.6774,176.11,176.09,59.56]
[1747262105955,5.6772,176.12,176.09,59.56]
[1747262106351,62.9303,176.17,176.09,59.56]
[1747262106557,5.6777,176.1,176.09,59.56]
[1747262109157,5.6774,176.11,176.09,59.56]
[1747262109354,58.84,176.13,176.09,65.238]
[1747262109757,58.84,176.13,176.09,59.56]
[1747262110054,58.8,176.15,176.09,59.56]
[1747262111257,10.1788932,176.17,176.09,65.2378]
[1747262111457,58.76,176.16,176.09,65.2378]
[1747262112256,58.76,176.16,176.09,59.56]
[1747262112456,6.4485932,176.14,176.06,59.56]
[1747262113056,5.6782,176.09,176.06,65.2389]
[1747262113749,5.6778,176.1,176.06,65.2389]
[1747262113947,58.9,176.11,176.06,59.56]
[1747262114658,5.6778,176.1,176.06,65.239]
[1747262114859,6.45134412,176.14,176.06,59.56]
[1747262115158,58.84,176.13,176.06,59.56]
[1747262115354,5.6774,176.11,176.06,59.56]
[1747262116260,5.6774,176.11,176.07,5.6786]
[1747262116460,58.84,176.13,176.06,59.56]
[1747262116862,5.6781,176.09,176.06,59.56]
[1747262117162,58.84,176.13,176.06,59.56]
[1747262117664,5.6779,176.1,176.06,65.2389]
[1747262117857,58.84,176.13,176.06,59.56]
[1747262118361,5.6783,176.09,176.06,59.56]
[1747262118764,58.84,176.13,176.06,59.56]
[1747262119464,58.84,176.13,176.06,65.2389]
[1747262120263,5.678,176.1,176.06,65.2389]
[1747262122264,5.6783,176.09,176.06,59.56]
[1747262122664,5.6783,176.09,176.06,65.2389]
[1747262123365,5.6783,176.09,176.06,59.56]
[1747262125464,58.84,176.13,176.06,65.239]
[1747262127373,5.6777,176.11,176.07,5.6786]
[1747262127873,5.6777,176.1,176.07,5.6786]
[1747262128274,5.6777,176.1,176.06,65.2389]
[1747262129279,5.6774,176.11,176.06,59.56]
[1747262129773,58.62,176.13,176.06,59.56]
[1747262130577,5.6778,176.1,176.07,5.6786]
[1747262130873,5.6778,176.1,176.06,59.56]
[1747262131176,5.6778,176.1,176.06,65.2387]
[1747262135779,5.6778,176.1,176.07,5.6786]
[1747262139183,5.6775,176.11,176.07,5.6786]
[1747262139782,5.6777,176.1,176.07,5.6786]
[1747262141087,5.6775,176.11,176.08,5.6783]
[1747262142884,5.6778,176.1,176.02,490.52]
[1747262143084,5.6778,176.1,176.03,58.84]
[1747262144687,5.6778,176.1,176.07,5.6784]
[1747262144888,5.6778,176.1,176.08,58.84]
[1747262148695,5.6775,176.11,176.08,64.5183]
[1747262151996,5.6777,176.1,176.08,64.5183]
[1747262156194,58.02,176.13,176.08,58.84]
[1747262156396,10.45062998,176.12,176.02,490.52]
[1747262156691,5.6789,176.07,176.02,554.3002]
[1747262156897,57.92,176.06,176.02,554.3002]
[1747262157197,57.92,176.06,176.02,548.62]
[1747262157398,5.6793,176.06,176.03,5.6799]
[1747262157995,5.6794,176.05,176.03,5.6799]
[1747262158602,5.6794,176.05,176.02,554.3002]
[1747262160299,57.88,176.08,176.03,5.6799]
[1747262160900,5.6789,176.07,176.03,5.6799]
[1747262161495,5.679,176.06,176.03,5.6799]
[1747262162901,5.679,176.06,176.02,554.3001]
[1747262163702,57.78,176.09,176.02,548.62]
[1747262163901,64.23569754,176.09,176.02,548.62]
[1747262164602,5.6798,176.04,176.02,548.62]
[1747262165297,57.7,176.09,176.02,548.62]
[1747262165805,5.6787,176.07,176.04,5.6794]
[1747262165994,57.7,176.09,176.02,548.62]
[1747262166706,57.7,176.09,176.04,5.6796]
[1747262166896,57.7,176.09,176.02,548.62]
[1747262167704,5.6784,176.08,176.04,5.6794]
[1747262168404,5.6787,176.07,176.04,5.6794]
[1747262175015,9.80853876,176.08,176.05,5.6793]
[1747262175406,67.26853876,176.08,176.05,5.6793]
[1747262175707,5.6787,176.07,176.04,5.6795]
[1747262175908,4.13109709,176.05,175.88,4.13109709]
[1747262176115,4.13109709,175.97,175.88,4.13109709]
[1747262176304,62.11109709,175.97,175.88,4.13109709]
[1747262176610,62.11109709,175.97,175.89,57.44]
[1747262177012,5.6825,175.95,175.9,5.684]
[1747262178212,5.6829,175.94,175.89,63.1244]
[1747262178512,62.11109709,175.97,175.89,63.1244]
[1747262178706,5.6834,175.93,175.89,63.1244]
[1747262178906,62.11109709,175.97,175.89,57.44]
[1747262179306,57.98,175.97,175.89,57.44]
[1747262179704,5.6841,175.91,175.89,57.44]
[1747262180513,57.92,175.97,175.89,57.44]
[1747262180814,5.6829,175.94,175.9,5.6839]
[1747262181312,57.92,175.97,175.9,5.6839]
[1747262181610,57.92,175.97,175.92,5.6834]
[1747262181913,57.92,175.97,175.93,57.46]
[1747262182510,57.92,175.97,175.93,63.1431]
[1747262182813,57.92,175.97,175.93,57.46]
[1747262183315,5.6823,175.96,175.93,57.46]
[1747262185720,5.6823,175.96,175.93,63.1431]
[1747262187018,64.22369912,175.95,175.68,73.9222]
[1747262187225,64.22369912,175.95,175.81,6.46467663]
[1747262187226,57.96,175.94,175.81,6.46467663]
[1747262187522,5.6837,175.92,175.87,5.6849]
[1747262187721,5.6837,175.92,175.88,57.46]
[1747262188019,57.96,175.94,175.88,57.46]
[1747262188220,6.46467663,175.92,175.88,57.46]
[1747262189019,5.6845,175.89,175.88,57.46]
[1747262189220,1.8735,175.93,175.88,57.46]
[1747262189626,58.32,175.94,175.88,57.46]
[1747262190420,6.4639825,175.95,175.88,57.46]
[1747262190629,1.8735,175.98,175.88,57.46]
[1747262190927,58.34,175.97,175.88,57.46]
[1747262191730,58.32,175.97,175.88,57.46]
[1747262191931,58.32,175.97,175.89,1.919]
[1747262192235,58.32,175.97,175.92,5.6833]
[1747262192432,58.32,175.97,175.93,57.48]
[1747262193137,5.6823,175.96,175.93,63.1631]
[1747262193437,5.6823,175.96,175.93,57.48]
[1747262194034,5.6826,175.95,175.93,57.48]
[1747262196837,5.6826,175.95,175.93,63.1631]
[1747262197032,5.6823,175.96,175.93,57.48]
[1747262197236,6.4639825,176.0,175.94,5.6828]
[1747262197537,64.6239825,176.0,175.93,57.48]
[1747262198234,5.6817,175.98,175.95,5.6824]
[1747262200738,5.6817,175.98,175.94,5.6827]
[1747262200942,64.6239825,176.0,175.93,57.48]
[1747262201635,5.6823,175.96,175.93,57.48]
[1747262201841,64.6239825,176.0,175.93,57.48]
[1747262202041,5.6826,175.95,175.93,57.48]
[1747262204243,5.6826,175.95,175.92,5.6834]
[1747262204437,5.6826,175.95,175.94,57.48]
[1747262205742,5.6826,175.95,175.94,58.04]
[1747262219054,5.6841,175.9,175.88,491.1]
[1747262219250,59.8254,175.96,175.89,58.04]
[1747262220553,5.6841,175.9,175.89,58.04]
[1747262223960,5.6839,175.91,175.89,58.04]
[1747262224555,6.46282663,175.93,175.89,58.04]
[1747262225055,5.6841,175.9,175.89,58.04]
[1747262227558,6.46282663,175.93,175.89,63.7243]
[1747262228161,6.46282663,175.95,175.89,63.7243]
[1747262228358,6.46282663,175.95,175.89,58.04]
[1747262228856,5.9354,175.99,175.84,1.8981]
[1747262228857,4.0,175.99,175.84,1.8981]
[1747262229156,6.46282663,175.95,175.85,116.1]
[1747262229364,58.04,175.94,175.85,116.1]
[1747262229558,58.04,175.94,175.86,1.903]
[1747262230064,5.6835,175.92,175.88,5.6847]
[1747262230265,5.6835,175.92,175.89,58.06]
[1747262231066,5.6835,175.92,175.89,63.7444]
[1747262231865,58.04,175.94,175.89,58.06]
[1747262232766,5.6841,175.91,175.89,58.06]
[1747262233166,58.04,175.94,175.89,58.06]
[1747262233563,5.6836,175.92,175.89,58.06]
[1747262234364,5.6836,175.92,175.89,63.7443]
[1747262237168,5.6838,175.91,175.89,63.7443]
[1747262237466,58.04,175.94,175.89,58.06]
[1747262239167,5.6837,175.92,175.89,63.7442]
[1747262239367,58.04,175.94,175.89,58.06]
[1747262240570,5.6835,175.92,175.89,63.7443]
[1747262241170,5.6832,175.93,175.9,5.6841]
[1747262241372,64.24233514,175.97,175.9,5.6841]
[1747262241571,64.24233514,175.97,175.9,7.5474]
[1747262242172,5.6828,175.93,175.9,7.5474]
[1747262242870,4.0,175.98,175.9,1.8633]
[1747262243075,57.74,175.99,175.91,1.8229]
[1747262243574,5.6815,175.97,175.93,5.6824]
[1747262243872,5.6815,175.97,175.94,57.9]
[1747262244074,64.2997184,176.0,175.94,57.9]
[1747262244269,5.6818,175.96,175.94,57.9]
[1747262245276,5.682,175.95,175.94,57.9]
[1747262245670,64.2997184,176.0,175.94,57.9]
[1747262246073,5.6818,175.96,175.94,57.9]
[1747262247774,5.682,175.95,175.94,57.9]
[1747262250674,5.6815,175.97,175.94,63.5823]
[1747262251277,5.6815,175.97,175.94,57.9]
[1747262253477,5.6815,175.97,175.94,63.5822]
[1747262254473,6.4592057,176.02,175.95,5.6819]
[1747262254673,57.64,176.01,175.95,5.6819]
[1747262255378,5.6809,175.99,175.95,5.6819]
[1747262256176,5.6812,175.98,175.95,5.6819]
[1747262260586,5.6806,176.0,175.95,5.6819]
[1747262263388,5.6806,176.0,175.96,5.6816]
[1747262264387,5.6806,176.0,175.97,57.88]
[1747262265186,5.6804,176.0,175.97,57.88]
[1747262267689,5.6804,176.0,175.97,63.5613]
[1747262268688,57.42,176.04,175.97,57.88]
[1747262268689,63.87854536,176.04,175.97,57.88]
[1747262269391,4.13223408,176.02,175.97,57.88]
[1747262269992,57.42,176.04,175.97,57.88]
[1747262270291,4.13223408,176.02,175.97,57.88]
[1747262270492,9.81213408,176.02,175.98,5.6809]
[1747262270892,9.81213408,176.02,175.97,57.88]
[1747262271394,5.6799,176.02,175.97,57.88]